[Event "1er Open Estival de Marseille"]
[Site "Marseille, France"]
[Date "2023.08.03"]
[Round "6.2"]
[White "Rabette, Paul"]
[Black "Espinosa Aranda, Angel"]
[Result "0-1"]
[TimeControl "90+30s/move"]
[WhiteElo "1853"]
[BlackElo "2443"]

1. d4 {[%clk 01:25:56]} {[%emt 00:00:12]} d5 {[%clk 01:30:34]} {[%emt
00:00:27]} 2. c4 {[%clk 01:25:54]} {[%emt 00:00:32]} dxc4 {[%clk 01:30:37]}
{[%emt 00:00:27]} 3. Nf3 {[%clk 01:26:09]} {[%emt 00:00:15]} Nf6 {[%clk
01:30:51]} {[%emt 00:00:17]} 4. e3 {[%clk 01:26:25]} {[%emt 00:00:15]} Be6
{[%clk 01:30:08]} {[%emt 00:01:12]} 5. Nc3 {[%clk 01:24:54]} {[%emt 00:02:00]}
h6 {[%clk 01:30:19]} {[%emt 00:00:20]} 6. Be2 {[%clk 01:18:59]} {[%emt
00:06:25]} g6 {[%clk 01:26:43]} {[%emt 00:04:05]} 7. O-O {[%clk 01:18:43]}
{[%emt 00:00:46]} Bg7 {[%clk 01:27:11]} {[%emt 00:00:03]} 8. Ne5 {[%clk
01:17:26]} {[%emt 00:01:47]} O-O {[%clk 01:26:56]} {[%emt 00:00:45]} 9. Nxc4
{[%clk 01:16:26]} {[%emt 00:01:29]} c5 {[%clk 01:19:20]} {[%emt 00:08:06]} 10.
Ne5 {[%clk 01:03:52]} {[%emt 00:13:04]} cxd4 {[%clk 01:11:49]} {[%emt
00:08:02]} 11. exd4 {[%clk 01:03:58]} {[%emt 00:00:23]} Nd5 {[%clk 01:12:10]}
{[%emt 00:00:08]} 12. Bf3 {[%clk 01:00:35]} {[%emt 00:03:53]} Nc6 {[%clk
01:06:27]} {[%emt 00:06:14]} 13. Nxc6 {[%clk 00:57:57]} {[%emt 00:03:08]} bxc6
{[%clk 01:06:52]} {[%emt 00:00:05]} 14. Na4 {[%clk 00:53:20]} {[%emt 00:05:07]}
Rb8 {[%clk 01:06:21]} {[%emt 00:01:01]} 15. Nc5 {[%clk 00:50:22]} {[%emt
00:03:29]} Bf5 {[%clk 01:06:36]} {[%emt 00:00:15]} 16. Qa4 {[%clk 00:47:58]}
{[%emt 00:02:54]} Qd6 {[%clk 00:56:48]} {[%emt 00:10:18]} 17. Nb3 {[%clk
00:35:43]} {[%emt 00:12:45]} Bd3 {[%clk 00:45:07]} {[%emt 00:12:10]} 18. Rd1
{[%clk 00:32:08]} {[%emt 00:04:05]} Bc2 {[%clk 00:41:23]} {[%emt 00:04:14]} 19.
Re1 {[%clk 00:31:01]} {[%emt 00:01:37]} Nb4 {[%clk 00:31:29]} {[%emt 00:10:24]}
20. Be3 {[%clk 00:26:37]} {[%emt 00:04:54]} a5 {[%clk 00:24:00]} {[%emt
00:07:59]} 21. Re2 {[%clk 00:20:21]} {[%emt 00:06:45]} Bd3 {[%clk 00:17:25]}
{[%emt 00:07:06]} 22. Rd2 {[%clk 00:19:41]} {[%emt 00:01:10]} Bb5 {[%clk
00:17:51]} {[%emt 00:00:05]} 23. Qxa5 {[%clk 00:17:59]} {[%emt 00:02:11]} Ra8
{[%clk 00:17:45]} {[%emt 00:00:36]} 24. Qb6 {[%clk 00:15:51]} {[%emt 00:02:38]}
Nd3 {[%clk 00:14:10]} {[%emt 00:04:05]} 25. Rxd3 {[%clk 00:12:43]} {[%emt
00:03:38]} Rfb8 {[%clk 00:11:39]} {[%emt 00:03:01]} 26. Qc5 {[%clk 00:12:40]}
{[%emt 00:00:32]} Bxd3 {[%clk 00:12:06]} {[%emt 00:00:03]} 27. Qc3 {[%clk
00:09:51]} {[%emt 00:03:19]} Bb5 {[%clk 00:12:18]} {[%emt 00:00:18]} 28. Nc5
{[%clk 00:08:01]} {[%emt 00:02:20]} e5 {[%clk 00:11:39]} {[%emt 00:01:10]} 29.
dxe5 {[%clk 00:02:45]} {[%emt 00:05:46]} Qxe5 {[%clk 00:12:00]} {[%emt
00:00:09]} 30. Qxe5 {[%clk 00:02:02]} {[%emt 00:01:13]} Bxe5 {[%clk 00:12:26]}
{[%emt 00:00:05]} 31. Nd7 {[%clk 00:01:55]} {[%emt 00:00:36]} Bxb2 {[%clk
00:11:57]} {[%emt 00:00:59]} 32. Nxb8 {[%clk 00:02:11]} {[%emt 00:00:15]} Bxa1
{[%clk 00:12:22]} {[%emt 00:00:05]} 33. Nxc6 {[%clk 00:02:21]} {[%emt
00:00:20]} Bxc6 {[%clk 00:09:35]} {[%emt 00:03:17]} 34. Bxc6 {[%clk 00:02:49]}
{[%emt 00:00:02]} Rxa2 {[%clk 00:09:14]} {[%emt 00:00:51]} 35. h4 {[%clk
00:01:44]} {[%emt 00:01:35]} Kg7 {[%clk 00:09:09]} {[%emt 00:00:35]} 36. g3
{[%clk 00:01:45]} {[%emt 00:00:29]} Ra6 {[%clk 00:09:04]} {[%emt 00:00:35]} 37.
Bf3 {[%clk 00:01:56]} {[%emt 00:00:19]} Rd6 {[%clk 00:09:25]} {[%emt 00:00:09]}
38. Kg2 {[%clk 00:01:56]} {[%emt 00:00:29]} Bd4 {[%clk 00:09:49]} {[%emt
00:00:07]} 39. Bxd4+ {[%clk 00:02:25]} {[%emt 00:00:01]} Rxd4 {[%clk 00:10:13]}
{[%emt 00:00:06]} 40. Kh2 {[%clk 00:01:27]} {[%emt 00:01:28]} Kf6 {[%clk
00:10:37]} {[%emt 00:00:06]} 41. Kg2 {[%clk 00:01:24]} {[%emt 00:00:33]} Ke5
{[%clk 00:10:59]} {[%emt 00:00:09]} 42. Kh2 {[%clk 00:01:14]} {[%emt 00:00:39]}
Ra4 {[%clk 00:10:57]} {[%emt 00:00:32]} 43. Kg1 {[%clk 00:00:55]} {[%emt
00:00:49]} Kd4 {[%clk 00:11:20]} {[%emt 00:00:08]} 44. Kg2 {[%clk 00:00:45]}
{[%emt 00:00:39]} f6 {[%clk 00:11:15]} {[%emt 00:00:35]} 45. Bc6 {[%clk
00:00:44]} {[%emt 00:00:31]} Ra3 {[%clk 00:10:29]} {[%emt 00:01:17]} 46. Be8
{[%clk 00:00:53]} {[%emt 00:00:20]} g5 {[%clk 00:10:54]} {[%emt 00:00:06]} 47.
hxg5 {[%clk 00:00:36]} {[%emt 00:00:47]} hxg5 {[%clk 00:11:16]} {[%emt
00:00:08]} 48. Bd7 {[%clk 00:00:43]} {[%emt 00:00:23]} Kd3 {[%clk 00:11:08]}
{[%emt 00:00:38]} 49. Bf5+ {[%clk 00:00:34]} {[%emt 00:00:39]} Kd2 {[%clk
00:11:25]} {[%emt 00:00:13]} 50. f3 {[%clk 00:00:38]} {[%emt 00:00:26]} Ke3
{[%clk 00:11:30]} {[%emt 00:00:25]} 51. Bg4 {[%clk 00:00:35]} {[%emt 00:00:32]}
Ra2+ {[%clk 00:11:39]} {[%emt 00:00:21]} 52. Kh3 {[%clk 00:00:48]} {[%emt
00:00:17]} Rf2 {[%clk 00:11:47]} {[%emt 00:00:22]} 0-1

[Event "1er Open Estival de Marseille"]
[Site "Marseille, France"]
[Date "2023.08.03"]
[Round "6.3"]
[White "Charlier, Antoine"]
[Black "Zienkiewicz, Jan"]
[Result "0-1"]
[TimeControl "90+30s/move"]
[WhiteElo "1992"]
[BlackElo "2189"]

1. d4 {[%clk 01:30:08]} {[%emt 00:00:51]} Nf6 {[%clk 01:30:48]} {[%emt
00:00:07]} 2. c4 {[%clk 01:30:07]} {[%emt 00:00:38]} e6 {[%clk 01:31:12]}
{[%emt 00:00:06]} 3. Nc3 {[%clk 01:30:11]} {[%emt 00:00:25]} d5 {[%clk
01:31:31]} {[%emt 00:00:11]} 4. cxd5 {[%clk 01:30:07]} {[%emt 00:00:34]} exd5
{[%clk 01:31:55]} {[%emt 00:00:06]} 5. Bg5 {[%clk 01:30:16]} {[%emt 00:00:21]}
Bb4 {[%clk 01:32:07]} {[%emt 00:00:18]} 6. e3 {[%clk 01:30:13]} {[%emt
00:00:33]} h6 {[%clk 01:32:16]} {[%emt 00:00:22]} 7. Bh4 {[%clk 01:25:18]}
{[%emt 00:05:24]} g5 {[%clk 01:32:32]} {[%emt 00:00:13]} 8. Bg3 {[%clk
01:24:16]} {[%emt 00:01:33]} h5 {[%clk 01:32:48]} {[%emt 00:00:14]} 9. Nge2
{[%clk 01:18:32]} {[%emt 00:06:14]} Ne4 {[%clk 01:30:00]} {[%emt 00:03:18]} 10.
h4 {[%clk 01:10:55]} {[%emt 00:08:07]} Bg4 {[%clk 01:29:46]} {[%emt 00:00:43]}
11. f3 {[%clk 01:00:41]} {[%emt 00:10:44]} Nxg3 {[%clk 01:29:51]} {[%emt
00:00:26]} 12. Nxg3 {[%clk 01:00:59]} {[%emt 00:00:11]} Be6 {[%clk 01:30:12]}
{[%emt 00:00:09]} 13. Bd3 {[%clk 00:59:44]} {[%emt 00:01:45]} Bd6 {[%clk
01:09:29]} {[%emt 00:21:13]} 14. Nf5 {[%clk 00:52:25]} {[%emt 00:07:49]} Bxf5
{[%clk 01:09:14]} {[%emt 00:00:46]} 15. Bxf5 {[%clk 00:50:50]} {[%emt
00:02:05]} c6 {[%clk 01:03:25]} {[%emt 00:06:19]} 16. Qb3 {[%clk 00:47:54]}
{[%emt 00:03:26]} Bg3+ {[%clk 01:01:31]} {[%emt 00:02:24]} 17. Kd2 {[%clk
00:43:22]} {[%emt 00:05:01]} b6 {[%clk 00:59:19]} {[%emt 00:02:42]} 18. Rh3
{[%clk 00:37:11]} {[%emt 00:06:41]} gxh4 {[%clk 00:47:46]} {[%emt 00:12:04]} 19.
Ne2 {[%clk 00:26:01]} {[%emt 00:11:39]} Bd6 {[%clk 00:37:47]} {[%emt 00:10:29]}
20. Rah1 {[%clk 00:17:54]} {[%emt 00:08:37]} Be7 {[%clk 00:36:25]} {[%emt
00:01:53]} 21. g3 {[%clk 00:17:11]} {[%emt 00:01:13]} Rg8 {[%clk 00:32:32]}
{[%emt 00:04:23]} 22. gxh4 {[%clk 00:14:02]} {[%emt 00:03:39]} Bd6 {[%clk
00:30:40]} {[%emt 00:02:22]} 23. f4 {[%clk 00:11:59]} {[%emt 00:02:33]} Nd7
{[%clk 00:25:49]} {[%emt 00:05:21]} 24. Rg1 {[%clk 00:08:14]} {[%emt 00:04:15]}
Rxg1 {[%clk 00:19:23]} {[%emt 00:06:57]} 25. Nxg1 {[%clk 00:08:35]} {[%emt
00:00:09]} Qf6 {[%clk 00:19:15]} {[%emt 00:00:37]} 26. Qc2 {[%clk 00:07:29]}
{[%emt 00:01:36]} Bb4+ {[%clk 00:14:36]} {[%emt 00:05:09]} 27. Ke2 {[%clk
00:06:57]} {[%emt 00:01:02]} O-O-O {[%clk 00:14:38]} {[%emt 00:00:29]} 28. Nf3
{[%clk 00:03:24]} {[%emt 00:04:03]} Kb7 {[%clk 00:11:16]} {[%emt 00:03:51]} 29.
Bxd7 {[%clk 00:01:50]} {[%emt 00:02:04]} Rxd7 {[%clk 00:11:24]} {[%emt
00:00:23]} 30. Ne5 {[%clk 00:02:10]} {[%emt 00:00:09]} Rc7 {[%clk 00:10:41]}
{[%emt 00:01:13]} 31. a3 {[%clk 00:01:31]} {[%emt 00:01:10]} Bd6 {[%clk
00:10:58]} {[%emt 00:00:13]} 32. b4 {[%clk 00:01:00]} {[%emt 00:01:00]} Qg7
{[%clk 00:10:16]} {[%emt 00:01:12]} 33. Kf2 {[%clk 00:00:59]} {[%emt 00:00:31]}
Bxe5 {[%clk 00:08:09]} {[%emt 00:02:37]} 34. dxe5 {[%clk 00:01:08]} {[%emt
00:00:21]} Qg4 {[%clk 00:07:46]} {[%emt 00:00:52]} 35. Rh1 {[%clk 00:01:19]}
{[%emt 00:00:19]} d4 {[%clk 00:07:47]} {[%emt 00:00:29]} 36. Qe2 {[%clk
00:00:43]} {[%emt 00:01:06]} dxe3+ {[%clk 00:07:30]} {[%emt 00:00:47]} 37. Kxe3
{[%clk 00:00:41]} {[%emt 00:00:32]} Qe6 {[%clk 00:07:50]} {[%emt 00:00:11]} 38.
Rc1 {[%clk 00:00:39]} {[%emt 00:00:32]} f6 {[%clk 00:06:43]} {[%emt 00:01:36]}
39. Kf2 {[%clk 00:00:47]} {[%emt 00:00:22]} fxe5 {[%clk 00:06:34]} {[%emt
00:00:40]} 40. Re1 {[%clk 00:00:45]} {[%emt 00:00:31]} Qf6 {[%clk 00:04:02]}
{[%emt 00:03:02]} 41. Qxe5 {[%clk 00:00:53]} {[%emt 00:00:22]} Qxh4+ {[%clk
00:04:31]} {[%emt 00:00:01]} 42. Kg2 {[%clk 00:00:51]} {[%emt 00:00:32]} Qg4+
{[%clk 00:04:33]} {[%emt 00:00:28]} 43. Kf2 {[%clk 00:01:13]} {[%emt 00:00:08]}
Rg7 {[%clk 00:04:21]} {[%emt 00:00:41]} 44. Qe4 {[%clk 00:00:37]} {[%emt
00:01:06]} Qh4+ {[%clk 00:03:18]} {[%emt 00:01:33]} 45. Kf1 {[%clk 00:00:35]}
{[%emt 00:00:32]} Qh3+ {[%clk 00:03:27]} {[%emt 00:00:20]} 46. Kf2 {[%clk
00:00:46]} {[%emt 00:00:19]} Qh2+ {[%clk 00:02:41]} {[%emt 00:01:16]} 47. Ke3
{[%clk 00:00:57]} {[%emt 00:00:20]} Rg3+ {[%clk 00:02:56]} {[%emt 00:00:15]} 48.
Kd4 {[%clk 00:01:16]} {[%emt 00:00:10]} Qb2+ {[%clk 00:03:22]} {[%emt
00:00:04]} 0-1

[Event "1er Open Estival de Marseille"]
[Site "Marseille, France"]
[Date "2023.08.03"]
[Round "6.1"]
[White "Degraeve, Jean-Marc"]
[Black "Dudognon, Thibault"]
[Result "0-1"]
[TimeControl "90+30s/move"]
[WhiteElo "2466"]
[BlackElo "2279"]

1. e4 {[%clk 01:30:56]} {[%emt 00:00:03]} c5 {[%clk 01:30:53]} {[%emt
00:00:07]} 2. Nf3 {[%clk 01:31:05]} {[%emt 00:00:21]} d6 {[%clk 01:31:18]}
{[%emt 00:00:04]} 3. Bc4 {[%clk 01:31:22]} {[%emt 00:00:13]} Nf6 {[%clk
01:31:38]} {[%emt 00:00:10]} 4. d3 {[%clk 01:31:47]} {[%emt 00:00:06]} Nc6
{[%clk 01:31:43]} {[%emt 00:00:25]} 5. O-O {[%clk 01:32:00]} {[%emt 00:00:17]}
g6 {[%clk 01:32:09]} {[%emt 00:00:03]} 6. c3 {[%clk 01:32:01]} {[%emt
00:00:30]} Bg7 {[%clk 01:32:30]} {[%emt 00:00:08]} 7. Bb3 {[%clk 01:32:13]}
{[%emt 00:00:18]} O-O {[%clk 01:32:34]} {[%emt 00:00:26]} 8. Re1 {[%clk
01:32:38]} {[%emt 00:00:05]} b5 {[%clk 01:32:37]} {[%emt 00:00:27]} 9. h3
{[%clk 01:32:55]} {[%emt 00:00:14]} a5 {[%clk 01:32:59]} {[%emt 00:00:08]} 10.
a4 {[%clk 01:32:12]} {[%emt 00:01:14]} b4 {[%clk 01:32:31]} {[%emt 00:00:58]}
11. Bg5 {[%clk 01:22:55]} {[%emt 00:09:47]} Ba6 {[%clk 01:28:21]} {[%emt
00:04:39]} 12. d4 {[%clk 01:21:54]} {[%emt 00:01:32]} c4 {[%clk 01:21:39]}
{[%emt 00:07:11]} 13. e5 {[%clk 01:07:13]} {[%emt 00:15:11]} dxe5 {[%clk
01:20:47]} {[%emt 00:01:22]} 14. dxe5 {[%clk 01:07:39]} {[%emt 00:00:04]} cxb3
{[%clk 01:20:47]} {[%emt 00:00:31]} 15. exf6 {[%clk 01:06:03]} {[%emt
00:02:05]} Qxd1 {[%clk 01:21:05]} {[%emt 00:00:12]} 16. Rxd1 {[%clk 01:06:32]}
{[%emt 00:00:02]} exf6 {[%clk 01:21:05]} {[%emt 00:00:30]} 17. Be3 {[%clk
01:05:27]} {[%emt 00:01:34]} Be2 {[%clk 01:20:19]} {[%emt 00:01:16]} 18. Rd6
{[%clk 01:05:26]} {[%emt 00:00:31]} Bxf3 {[%clk 01:20:33]} {[%emt 00:00:17]} 19.
gxf3 {[%clk 01:05:54]} {[%emt 00:00:02]} Ne5 {[%clk 01:16:26]} {[%emt
00:04:35]} 20. Nd2 {[%clk 01:05:44]} {[%emt 00:00:40]} bxc3 {[%clk 01:06:37]}
{[%emt 00:10:19]} 21. bxc3 {[%clk 01:06:12]} {[%emt 00:00:02]} Rfc8 {[%clk
01:01:13]} {[%emt 00:05:53]} 22. Kg2 {[%clk 01:05:31]} {[%emt 00:01:11]} Rab8
{[%clk 00:50:48]} {[%emt 00:10:55]} 23. Rb1 {[%clk 01:03:27]} {[%emt 00:02:35]}
b2 {[%clk 00:46:00]} {[%emt 00:05:17]} 24. Rd5 {[%clk 00:54:52]} {[%emt
00:09:05]} Rxc3 {[%clk 00:40:19]} {[%emt 00:06:10]} 25. Rxa5 {[%emt 00:10:40]}
Nd3 {[%emt 00:06:50]} 26. Ne4 {[%clk 00:42:44]} {[%emt 00:06:57]} Rcb3 {[%clk
00:28:14]} {[%emt 00:01:47]} 27. Nd2 {[%clk 00:17:55]} {[%emt 00:25:19]} R3b4
{[%emt 00:03:14]} 28. Ra7 {[%clk 00:14:55]} {[%emt 00:01:45]} f5 {[%clk
00:25:52]} {[%emt 00:01:53]} 29. a5 {[%clk 00:15:17]} {[%emt 00:00:08]} Bc3
{[%emt 00:03:26]} 30. Rd7 {[%clk 00:14:10]} {[%emt 00:00:29]} Ne5 {[%clk
00:19:47]} {[%emt 00:04:46]} 31. Rc7 {[%clk 00:13:54]} {[%emt 00:00:46]} Bd4
{[%clk 00:16:39]} {[%emt 00:03:38]} 32. a6 {[%emt 00:01:42]} Bxe3 {[%clk
00:14:53]} {[%emt 00:01:57]} 33. fxe3 {[%clk 00:13:30]} {[%emt 00:00:02]} Rd8
{[%clk 00:13:48]} {[%emt 00:01:34]} 34. Rc2 {[%clk 00:12:50]} {[%emt 00:01:09]}
Nd3 {[%clk 00:13:42]} {[%emt 00:00:38]} 35. Kf1 {[%clk 00:06:42]} {[%emt
00:06:39]} Ra4 {[%clk 00:13:14]} {[%emt 00:00:58]} 36. Ke2 {[%clk 00:06:43]}
{[%emt 00:00:29]} Rxa6 {[%clk 00:12:41]} {[%emt 00:01:04]} 37. Rc3 {[%clk
00:06:40]} {[%emt 00:00:33]} Nc1+ {[%clk 00:11:28]} {[%emt 00:01:42]} 38. Kd1
{[%clk 00:02:16]} {[%emt 00:04:54]} Ra1 {[%clk 00:11:53]} {[%emt 00:00:05]} 39.
Kc2 {[%clk 00:02:24]} {[%emt 00:00:23]} Na2 {[%clk 00:08:07]} {[%emt 00:04:16]}
0-1

[ePGN "0.1;DGT LiveChess/2.2.5"]

[Event "1er Open Estival de Marseille"]
[Site "Marseille, France"]
[Date "2023.07.31"]
[Round "1.1"]
[White "Deladerriere, Apollo"]
[Black "Degraeve, Jean-Marc"]
[Result "0-1"]
[TimeControl "90+30s/move"]
[WhiteElo "1797"]
[BlackElo "2466"]

1. e4 {[%clk 01:30:57]} {[%emt 00:00:01]} Nf6 {[%clk 01:30:29]} {[%emt
00:00:31]} 2. e5 {[%clk 01:31:02]} {[%emt 00:00:26]} Nd5 {[%clk 01:30:51]}
{[%emt 00:00:07]} 3. Nc3 {[%clk 01:31:02]} {[%emt 00:00:32]} Nxc3 {[%clk
01:30:51]} {[%emt 00:00:29]} 4. dxc3 {[%clk 01:31:20]} {[%emt 00:00:12]} d6
{[%clk 01:30:51]} {[%emt 00:00:31]} 5. Bf4 {[%clk 01:30:26]} {[%emt 00:01:22]}
dxe5 {[%clk 01:28:07]} {[%emt 00:03:15]} 6. Qxd8+ {[%clk 01:30:43]} {[%emt
00:00:13]} Kxd8 {[%clk 01:28:30]} {[%emt 00:00:06]} 7. O-O-O+ {[%clk 01:30:11]}
{[%emt 00:01:02]} Bd7 {[%clk 01:28:49]} {[%emt 00:00:12]} 8. Bxe5 {[%clk
01:30:23]} {[%emt 00:00:18]} f6 {[%clk 01:28:04]} {[%emt 00:01:15]} 9. Bg3
{[%clk 01:30:16]} {[%emt 00:00:37]} e5 {[%clk 01:28:20]} {[%emt 00:00:14]} 10.
Bc4 {[%clk 01:23:48]} {[%emt 00:06:58]} Bd6 {[%clk 01:28:04]} {[%emt 00:00:46]}
11. Nf3 {[%clk 01:21:01]} {[%emt 00:03:17]} Nc6 {[%clk 01:27:52]} {[%emt
00:00:42]} 12. Nd2 {[%clk 01:15:20]} {[%emt 00:06:10]} Ne7 {[%clk 01:24:46]}
{[%emt 00:03:36]} 13. Ne4 {[%clk 01:13:47]} {[%emt 00:02:04]} Nf5 {[%clk
01:24:52]} {[%emt 00:00:23]} 14. Bd5 {[%clk 01:13:39]} {[%emt 00:00:39]} Rb8
{[%clk 01:23:58]} {[%emt 00:01:23]} 15. Rd2 {[%clk 01:11:45]} {[%emt 00:02:24]}
Ke7 {[%clk 01:22:33]} {[%emt 00:01:54]} 16. Rhd1 {[%clk 01:10:03]} {[%emt
00:02:13]} Rhd8 {[%clk 01:22:10]} {[%emt 00:00:53]} 17. f3 {[%clk 01:09:11]}
{[%emt 00:01:23]} Nxg3 {[%clk 01:08:44]} {[%emt 00:13:55]} 18. hxg3 {[%clk
01:08:40]} {[%emt 00:01:01]} f5 {[%clk 01:08:52]} {[%emt 00:00:23]} 19. Ng5
{[%clk 01:07:28]} {[%emt 00:01:43]} h6 {[%clk 00:53:46]} {[%emt 00:15:36]} 20.
Nf7 {[%clk 00:58:59]} {[%emt 00:08:59]} Rf8 {[%clk 00:53:55]} {[%emt 00:00:20]}
21. c4 {[%clk 00:50:27]} {[%emt 00:09:03]} b6 {[%clk 00:53:39]} {[%emt
00:00:46]} 22. Nxd6 {[%clk 00:50:52]} {[%emt 00:00:05]} cxd6 {[%clk 00:54:01]}
{[%emt 00:00:08]} 23. f4 {[%clk 00:47:49]} {[%emt 00:03:33]} Rbd8 {[%clk
00:53:26]} {[%emt 00:01:05]} 24. Bb7 {[%clk 00:43:38]} {[%emt 00:04:42]} Be6
{[%clk 00:53:25]} {[%emt 00:00:30]} 25. fxe5 {[%clk 00:43:48]} {[%emt
00:00:21]} dxe5 {[%clk 00:53:45]} {[%emt 00:00:10]} 26. Rxd8 {[%clk 00:44:00]}
{[%emt 00:00:18]} Rxd8 {[%clk 00:54:13]} {[%emt 00:00:02]} 27. Rxd8 {[%clk
00:43:50]} {[%emt 00:00:40]} Kxd8 {[%clk 00:54:42]} {[%emt 00:00:01]} 28. Bd5
{[%clk 00:44:09]} {[%emt 00:00:11]} Ke7 {[%clk 00:50:02]} {[%emt 00:05:10]} 29.
Kd2 {[%clk 00:37:43]} {[%emt 00:06:56]} g5 {[%clk 00:47:04]} {[%emt 00:03:27]}
30. Bxe6 {[%clk 00:35:28]} {[%emt 00:02:46]} Kxe6 {[%clk 00:47:32]} {[%emt
00:00:01]} 31. Ke3 {[%clk 00:35:48]} {[%emt 00:00:11]} h5 {[%clk 00:47:25]}
{[%emt 00:00:36]} 32. b4 {[%clk 00:32:55]} {[%emt 00:03:24]} h4 {[%clk
00:45:38]} {[%emt 00:02:53]} 33. gxh4 gxh4 34. a4 {[%clk 00:32:47]} Kd6 {[%clk
00:44:53]} {[%emt 00:01:35]} 35. c3 {[%clk 00:29:41]} Ke6 {[%clk 00:44:53]} 36.
Kd3 {[%clk 00:29:41]} e4+ {[%clk 00:44:53]} 37. Kd4 {[%clk 00:29:41]} Kd6
{[%clk 00:44:53]} 38. b5 {[%clk 00:29:41]} Ke6 {[%clk 00:44:53]} 39. Ke3 {[%clk
00:29:41]} Ke5 {[%clk 00:44:53]} 40. c5 {[%clk 00:29:41]} f4+ {[%clk 00:44:53]}
41. Kf2 {[%clk 00:29:41]} bxc5 {[%clk 00:44:53]} 42. a5 {[%clk 00:29:41]} Kd6
{[%clk 00:44:53]} 43. c4 {[%clk 00:29:41]} Kc7 {[%clk 00:44:53]} 44. a6 {[%clk
00:29:41]} Kb6 {[%clk 00:44:53]} 45. Kf1 {[%clk 00:29:41]} f3 {[%clk 00:44:53]}
46. gxf3 {[%clk 00:29:41]} e3 {[%clk 00:44:53]} 47. f4 {[%clk 00:29:41]} h3
{[%clk 00:44:53]} 48. f5 {[%clk 00:29:41]} h2 {[%clk 00:44:53]} 49. Kg2 {[%clk
00:29:41]} e2 {[%clk 00:44:53]} 50. f6 {[%clk 00:29:41]} e1=Q {[%clk 00:44:53]}
0-1